fUSD/lending_fUSD_20240328
["ID","MTS","AMOUNT","RATE_DAILY","PERIOD"]
[320875561,1711657856581,-2229.86,0.00050136,120]
[320875562,1711657856590,-500.0,0.00050136,120]
[320875563,1711657856599,-1144.93,0.00050136,120]
[320875564,1711657856608,-500.0,0.00050136,120]
[320875565,1711657856618,-500.0,0.00050136,120]
[320875566,1711657856626,-1888.6,0.00050136,120]
[320875567,1711657856635,-829.48,0.00050136,120]
[320875568,1711657856645,-950.58,0.00050136,120]
[320875569,1711657856654,-500.0,0.00050136,120]
[320875570,1711657856662,-695.57,0.00050136,120]
[320875571,1711657856671,-500.0,0.00050136,120]
[320875572,1711657856680,-1770.22,0.00050136,120]
[320875573,1711657856689,-1175.4,0.00050136,120]
[320875574,1711657856698,-786.34,0.00050136,120]
[320875575,1711657856709,-704.67,0.00050136,120]
[320875576,1711657856720,-500.0,0.00050136,120]
[320875577,1711657856729,-1147.32,0.00050136,120]
[320875578,1711657856739,-500.0,0.00050136,120]
[320875579,1711657856749,-811.81,0.00050136,120]
[320875580,1711657856758,-817.91,0.00050136,120]
[320875581,1711657856767,-843.26,0.00050136,120]
[320875582,1711657856776,-1318.38,0.00050136,120]
[320875583,1711657856786,-1796.5,0.00050136,120]
[320875584,1711657856795,-7494.96,0.00050136,120]
[320875585,1711657856806,-500.0,0.00050136,120]
[320875586,1711657856815,-1916.07,0.00050136,120]
[320875587,1711657856825,-500.0,0.00050136,120]
[320875588,1711657856833,-604.95,0.00050136,120]
[320875589,1711657856842,-838.79,0.00050136,120]
[320875590,1711657856851,-500.0,0.00050136,120]
[320875591,1711657856860,-1259.32,0.00050136,120]
[320875592,1711657856870,-500.0,0.00050136,120]
[320875593,1711657856878,-2498.54,0.00050136,120]
[320875594,1711657856887,-852.74,0.00050136,120]
[320875595,1711657856898,-1137.18,0.00050136,120]
[320875596,1711657856909,-1225.73,0.00050136,120]
[320875597,1711657856918,-500.0,0.00050136,120]
[320875598,1711657856928,-1103.04,0.00050136,120]
[320875599,1711657856937,-1611.72,0.00050136,120]
[320875600,1711657856948,-500.0,0.00050136,120]
[320875601,1711657856958,-1413.66,0.00050136,120]
[320875602,1711657856967,-1156.34,0.00050136,120]
[320875603,1711657856977,-1001.61,0.00050136,120]
[320875604,1711657856987,-550.97,0.00050136,120]
[320875605,1711657856995,-500.0,0.00050136,120]
[320875606,1711657857005,-500.0,0.00050136,120]
[320875607,1711657857015,-12116.07,0.00050136,120]
[320875608,1711657857026,-1485.54,0.00050136,120]
[320875609,1711657857035,-500.0,0.00050136,120]
[320875610,1711657857044,-316.66758181,0.00050136,120]
[320875611,1711657857053,-1869.89,0.00050136,120]
[320875612,1711657857062,-2806.09,0.00050136,120]
[320875613,1711657857071,-1439.35,0.00050136,120]
[320875614,1711657857080,-500.0,0.00050136,120]
[320875615,1711657857089,-1111.4,0.00050136,120]
[320875616,1711657857098,-3261.79,0.00050136,120]
[320875617,1711657857107,-500.0,0.00050136,120]
[320875618,1711657857116,-934.15,0.00050136,120]
[320875619,1711657857125,-500.0,0.00050136,120]
[320875620,1711657857134,-5735.17,0.00050136,120]
[320875621,1711657857143,-2204.92,0.00050136,120]
[320875622,1711657857152,-1287.66,0.00050136,120]
[320875623,1711657857161,-500.0,0.00050136,120]
[320875624,1711657857170,-500.0,0.00050136,120]
[320875625,1711657857179,-1082.84,0.00050136,120]
[320875626,1711657857188,-155.84553725,0.00050136,120]
[320875627,1711657857197,-1036.92,0.00050136,120]
[320875628,1711657857207,-683.84,0.00050136,120]
[320875629,1711657857215,-500.0,0.00050136,120]
[320875630,1711657857224,-1740.32,0.00050136,120]
[320875631,1711657857233,-500.0,0.00050136,120]
[320875632,1711657857243,-500.0,0.00050136,120]
[320875633,1711657857252,-500.0,0.00050136,120]
[320875634,1711657857261,-953.44,0.00050136,120]
[320875635,1711657857270,-500.0,0.00050136,120]
[320875636,1711657857280,-854.72,0.00050136,120]
[320875637,1711657857289,-1984.52,0.00050136,120]
[320875638,1711657857298,-1255.07,0.00050136,120]
[320875639,1711657857307,-592.88,0.00050136,120]
[320875640,1711657857316,-1534.49,0.00050136,21]
[320875641,1711657857325,-1697.81,0.00050136,120]
[320875642,1711657857334,-500.0,0.00050136,120]
[320875643,1711657857343,-500.0,0.00050136,120]
[320875644,1711657857352,-1268.16,0.00050136,120]
[320875645,1711657857361,-500.0,0.00050136,120]
[320875646,1711657857370,-2053.67,0.00050136,120]
[320875647,1711657857379,-1242.01,0.00050136,120]
[320875648,1711657857388,-747.46,0.00050136,120]
[320875649,1711657857397,-500.0,0.00050136,120]
[320875650,1711657857406,-500.0,0.00050136,120]
[320875651,1711657857415,-774.33,0.00050136,120]
[320875652,1711657857423,-888.46,0.00050136,120]
[320875653,1711657857433,-1376.46,0.00050136,120]
[320875654,1711657857441,-1710.74,0.00050136,120]
[320875655,1711657857450,-657.85,0.00050136,120]
[320875656,1711657857460,-1045.24,0.00050136,120]
[320875657,1711657857468,-1169.6,0.00050136,120]
[320875658,1711657857477,-509.54,0.00050136,120]
[320875659,1711657857486,-1448.91,0.00050136,120]
[320875660,1711657857495,-1439.96,0.00050136,120]
[320875661,1711657857504,-1004.32,0.00050136,120]
[320875662,1711657857513,-1298.01,0.00050136,120]
[320875663,1711657857522,-1245.78,0.00050136,120]
[320875664,1711657857531,-589.63,0.00050136,120]
[320875665,1711657857540,-500.0,0.00050136,120]
[320875666,1711657857548,-500.0,0.00050136,120]
[320875667,1711657857557,-930.47,0.00050136,120]
[320875668,1711657857566,-4298.21,0.00050136,120]
[320875669,1711657857575,-500.0,0.00050136,2]
[320875670,1711657857584,-545.97,0.00050136,120]
[320875671,1711657857593,-1852.96,0.00050136,120]
[320875672,1711657857602,-500.0,0.00050136,120]
[320875673,1711657857611,-500.0,0.00050136,120]
[320875674,1711657857620,-500.0,0.00050136,120]
[320875675,1711657857629,-1128.4,0.00050136,120]
[320875676,1711657857638,-873.64,0.00050136,120]
[320875677,1711657857647,-500.0,0.00050136,120]
[320875678,1711657857656,-3091.16,0.00050136,120]
[320875679,1711657857665,-500.0,0.00050136,120]
[320875680,1711657857674,-644.85,0.00050136,120]
[320875681,1711657857683,-953.45,0.00050136,120]
[320875682,1711657857692,-948.97,0.00050136,120]
[320875683,1711657857701,-165.96539819,0.00050164,120]
[320875684,1711657857711,-433.76,0.00050212,2]
[320875685,1711657857721,-266.26854256,0.00050246,2]
[320875686,1711657857730,-800.0,0.00050278,30]
[320875687,1711657857739,-170.28340532,0.0005031,85]
[320875688,1711657857748,-1907.36763049,0.0005031,47]
[320875689,1711657857759,-154.98728367,0.00050352,60]
[320875690,1711657857767,-6061.21970642,0.0005041,31]
[320875691,1711657857776,-1139.92365328,0.0005041,120]
[320875692,1711657857785,-1117.72,0.0005041,120]
[320875693,1711657857794,-500.0,0.0005041,120]
[320875694,1711657857803,-500.0,0.0005041,120]
[320875695,1711657857812,-500.0,0.0005041,2]
[320875696,1711657857821,-500.0,0.0005041,120]
[320875697,1711657857830,-500.0,0.0005041,120]
[320875698,1711657857839,-500.0,0.0005041,2]
[320875699,1711657857848,-500.0,0.0005041,120]
[320875700,1711657857857,-500.0,0.0005041,120]
[320875701,1711657857866,-270.37079756,0.0005041,120]
[320875702,1711657857874,-500.0,0.0005041,120]
[320875703,1711657857883,-500.0,0.0005041,120]
[320875704,1711657857891,-500.0,0.0005041,120]
[320875705,1711657857900,-533.92,0.0005041,120]
[320875706,1711657857909,-500.0,0.0005041,120]
[320875707,1711657857919,-500.0,0.0005041,120]
[320875708,1711657857928,-500.0,0.0005041,120]
[320875709,1711657857938,-500.0,0.0005041,120]
[320875710,1711657857947,-500.0,0.0005041,120]
[320875711,1711657857956,-500.0,0.0005041,120]
[320875712,1711657857966,-500.0,0.0005041,120]
[320875713,1711657857975,-500.0,0.0005041,120]
[320875714,1711657857984,-500.0,0.0005041,120]
[320875715,1711657857993,-500.0,0.0005041,120]
[320875716,1711657858002,-500.0,0.0005041,120]
[320875717,1711657858011,-500.0,0.0005041,120]
[320875718,1711657858020,-570.97,0.0005041,120]
[320875719,1711657858029,-500.0,0.0005041,120]
[320875720,1711657858038,-657.18,0.0005041,120]
[320875721,1711657858047,-500.0,0.0005041,120]
[320875722,1711657858056,-623.32,0.0005041,120]
[320875723,1711657858065,-500.0,0.0005041,120]
[320875724,1711657858074,-500.0,0.0005041,120]
[320875725,1711657858083,-500.0,0.0005041,120]
[320875726,1711657858092,-500.0,0.0005041,120]
[320875727,1711657858101,-500.0,0.0005041,120]
[320875728,1711657858110,-543.65,0.0005041,120]
[320875729,1711657858118,-543.18,0.0005041,120]
[320875730,1711657858127,-500.0,0.0005041,120]
[320875731,1711657858136,-500.0,0.0005041,120]
[320875732,1711657858145,-500.0,0.0005041,120]
[320875733,1711657858154,-577.57096291,0.0005041,120]
[320875734,1711657858163,-500.0,0.0005041,30]
[320875735,1711657858172,-500.0,0.0005041,120]
[320875736,1711657858181,-500.0,0.0005041,120]
[320875737,1711657858190,-239.0711948,0.0005041,120]
[320875738,1711657858199,-500.0,0.0005041,120]
[320875739,1711657858208,-500.0,0.0005041,120]
[320875740,1711657858216,-500.0,0.0005041,120]
[320875741,1711657858225,-769.72,0.0005041,120]
[320875742,1711657858235,-848.13,0.0005041,120]
[320875743,1711657858243,-500.0,0.0005041,120]
[320875744,1711657858253,-500.0,0.0005041,120]
[320875745,1711657858262,-500.0,0.0005041,120]
[320875746,1711657858272,-500.0,0.0005041,120]
[320875747,1711657858282,-607.25,0.0005041,120]
[320875748,1711657858291,-500.0,0.0005041,120]
[320875749,1711657858301,-500.0,0.0005041,120]
[320875750,1711657858310,-500.0,0.0005041,120]
[320875751,1711657858320,-184.41,0.0005041,120]
[320875752,1711657858330,-624.08,0.0005041,120]
[320875753,1711657858339,-500.0,0.0005041,120]
[320875754,1711657858349,-622.22,0.0005041,120]
[320875755,1711657858358,-500.0,0.0005041,120]
[320875756,1711657858367,-500.0,0.0005041,120]
[320875757,1711657858377,-500.0,0.0005041,120]
[320875758,1711657858386,-523.8,0.0005041,120]
[320875759,1711657858395,-500.0,0.0005041,120]
[320875760,1711657858405,-500.0,0.0005041,120]
[320875761,1711657858414,-500.0,0.0005041,120]
[320875762,1711657858423,-500.0,0.0005041,120]
[320875763,1711657858432,-526.01,0.0005041,120]
[320875764,1711657858441,-500.0,0.0005041,120]
[320875765,1711657858451,-732.83,0.0005041,120]
[320875766,1711657858460,-500.0,0.0005041,120]
[320875767,1711657858469,-500.0,0.0005041,120]
[320875768,1711657858479,-500.0,0.0005041,120]
[320875769,1711657858489,-500.0,0.0005041,120]
[320875770,1711657858498,-504.61,0.0005041,120]
[320875771,1711657858507,-500.0,0.0005041,120]
[320875772,1711657858517,-500.0,0.0005041,120]
[320875773,1711657858527,-500.0,0.0005041,120]
[320875774,1711657858536,-500.0,0.0005041,120]
[320875775,1711657858545,-786.16,0.0005041,120]
[320875776,1711657858556,-500.0,0.0005041,120]
[320875777,1711657858566,-568.16,0.0005041,120]
[320875778,1711657858576,-500.0,0.0005041,120]
[320875779,1711657858586,-500.0,0.0005041,120]
[320875780,1711657858596,-500.0,0.0005041,120]
[320875781,1711657858605,-1868.91,0.0005041,120]
[320875782,1711657858616,-470.55,0.0005041,120]
[320875783,1711657858625,-539.73,0.0005041,120]
[320875784,1711657858635,-1238.66,0.0005041,120]
[320875785,1711657858645,-1001.82,0.0005041,120]
[320875786,1711657858654,-500.0,0.0005041,120]
[320875787,1711657858664,-1182.13,0.0005041,120]
[320875788,1711657858675,-500.0,0.0005041,120]
[320875789,1711657858686,-1275.02,0.0005041,120]
[320875790,1711657858696,-2115.21,0.0005041,120]
[320875791,1711657858706,-500.0,0.0005041,120]
[320875792,1711657858718,-2111.38,0.0005041,120]
[320875793,1711657858727,-2098.21,0.0005041,120]
[320875794,1711657858739,-500.0,0.0005041,120]
[320875795,1711657858748,-593.3,0.0005041,120]
[320875796,1711657858758,-530.79,0.0005041,120]
[320875797,1711657858767,-810.67,0.0005041,120]
[320875798,1711657858777,-500.0,0.0005041,120]
[320875799,1711657858786,-663.88,0.0005041,120]
[320875800,1711657858797,-2086.79,0.0005041,120]
[320875801,1711657858807,-804.93,0.0005041,120]
[320875802,1711657858817,-1062.0,0.0005041,120]
[320875803,1711657858826,-500.0,0.0005041,120]
[320875804,1711657858835,-8185.27,0.0005041,120]
[320875805,1711657858844,-500.0,0.0005041,120]
[320875806,1711657858854,-500.0,0.0005041,7]
[320875807,1711657858863,-838.06,0.0005041,120]
[320875808,1711657858875,-500.0,0.0005041,120]
[320875809,1711657858886,-558.67,0.0005041,120]
[320875810,1711657858898,-1015.69,0.0005041,120]
[320875811,1711657858908,-1110.66,0.0005041,120]
[320875812,1711657858918,-992.14,0.0005041,120]
[320875813,1711657858927,-500.0,0.0005041,120]
[320875814,1711657858938,-771.34,0.0005041,120]
[320875815,1711657858948,-1133.96,0.0005041,120]
[320875816,1711657858957,-1336.33,0.0005041,120]
[320875817,1711657858967,-1152.32,0.0005041,120]
[320875818,1711657858977,-500.0,0.0005041,120]
[320875819,1711657858988,-5950.39,0.0005041,120]
[320875820,1711657858997,-500.0,0.0005041,120]
[320875821,1711657859007,-500.0,0.0005041,120]
[320875822,1711657859017,-1600.55,0.0005041,120]
[320875823,1711657859027,-500.0,0.0005041,120]
[320875824,1711657859036,-1596.31,0.0005041,120]
[320875825,1711657859046,-2229.86,0.0005041,120]
[320875826,1711657859055,-500.0,0.0005041,120]
[320875827,1711657859065,-1144.93,0.0005041,120]
[320875828,1711657859074,-500.0,0.0005041,120]
[320875829,1711657859083,-500.0,0.0005041,120]
[320875830,1711657859093,-1888.6,0.0005041,120]
[320875831,1711657859103,-829.48,0.0005041,120]
[320875832,1711657859112,-950.58,0.0005041,120]
[320875833,1711657859122,-500.0,0.0005041,120]
[320875834,1711657859132,-695.57,0.0005041,120]
[320875835,1711657859142,-500.0,0.0005041,120]
[320875836,1711657859153,-1175.4,0.0005041,120]
[320875837,1711657859165,-1770.22,0.0005041,120]
[320875838,1711657859174,-786.34,0.0005041,120]
[320875839,1711657859184,-704.67,0.0005041,120]
[320875840,1711657859194,-500.0,0.0005041,120]
[320875841,1711657859204,-1147.32,0.0005041,120]
[320875842,1711657859214,-500.0,0.0005041,120]
[320875843,1711657859223,-811.81,0.0005041,120]
[320875844,1711657859233,-817.91,0.0005041,120]
[320875845,1711657859243,-843.26,0.0005041,120]
[320875846,1711657859253,-1318.38,0.0005041,120]
[320875847,1711657859263,-1796.5,0.0005041,120]
[320875848,1711657859273,-7494.96,0.0005041,120]
[320875849,1711657859283,-500.0,0.0005041,120]
[320875850,1711657859293,-1916.07,0.0005041,120]
[320875851,1711657859302,-500.0,0.0005041,120]
[320875852,1711657859311,-838.79,0.0005041,120]
[320875853,1711657859321,-604.95,0.0005041,120]
[320875854,1711657859331,-1259.32,0.0005041,120]
[320875855,1711657859340,-500.0,0.0005041,120]
[320875856,1711657859350,-500.0,0.0005041,120]
[320875857,1711657859359,-2498.54,0.0005041,120]
[320875858,1711657859369,-852.74,0.0005041,120]
[320875859,1711657859378,-1137.18,0.0005041,120]
[320875860,1711657859388,-1225.73,0.0005041,120]
[320875861,1711657859397,-500.0,0.0005041,120]
[320875862,1711657859407,-1103.04,0.0005041,120]
[320875863,1711657859416,-1611.72,0.0005041,120]
[320875864,1711657859425,-500.0,0.0005041,120]
[320875865,1711657859435,-1413.66,0.0005041,120]
[320875866,1711657859444,-1156.34,0.0005041,120]
[320875867,1711657859455,-1001.61,0.0005041,120]
[320875868,1711657859465,-550.97,0.0005041,120]
[320875869,1711657859475,-500.0,0.0005041,120]
[320875870,1711657859486,-500.0,0.0005041,120]
[320875871,1711657859495,-12116.07,0.0005041,120]
[320875872,1711657859505,-1485.54,0.0005041,120]
[320875873,1711657859514,-500.0,0.0005041,120]
[320875874,1711657859523,-1869.89,0.0005041,120]
[320875875,1711657859533,-2806.09,0.0005041,120]
[320875876,1711657859542,-1439.35,0.0005041,120]
[320875877,1711657859552,-500.0,0.0005041,120]
[320875878,1711657859561,-1111.4,0.0005041,120]
[320875879,1711657859571,-3261.79,0.0005041,120]
[320875880,1711657859581,-500.0,0.0005041,120]
[320875881,1711657859591,-934.15,0.0005041,120]
[320875882,1711657859600,-500.0,0.0005041,120]
[320875883,1711657859609,-5735.17,0.0005041,120]
[320875884,1711657859619,-1287.66,0.0005041,120]
[320875885,1711657859628,-2204.92,0.0005041,120]
[320875886,1711657859637,-500.0,0.0005041,120]
[320875887,1711657859647,-500.0,0.0005041,120]
[320875888,1711657859656,-1082.84,0.0005041,120]
[320875889,1711657859666,-1036.92,0.0005041,120]
[320875890,1711657859675,-683.84,0.0005041,120]
[320875891,1711657859684,-500.0,0.0005041,120]
[320875892,1711657859694,-1740.32,0.0005041,120]
[320875893,1711657859704,-500.0,0.0005041,120]
[320875894,1711657859715,-500.0,0.0005041,120]
[320875895,1711657859724,-500.0,0.0005041,120]
[320875896,1711657859734,-953.44,0.0005041,120]
[320875897,1711657859743,-854.72,0.0005041,120]
[320875898,1711657859753,-500.0,0.0005041,120]
[320875899,1711657859762,-1984.52,0.0005041,120]
[320875900,1711657859772,-1255.07,0.0005041,120]
[320875901,1711657859781,-592.88,0.0005041,120]
[320875902,1711657859791,-1534.49,0.0005041,21]
[320875903,1711657859801,-1697.81,0.0005041,120]
[320875904,1711657859810,-500.0,0.0005041,120]
[320875905,1711657859820,-500.0,0.0005041,120]
[320875906,1711657859830,-1268.16,0.0005041,120]
[320875907,1711657859839,-500.0,0.0005041,120]
[320875908,1711657859849,-2053.67,0.0005041,120]
[320875909,1711657859858,-1242.01,0.0005041,120]
[320875910,1711657859868,-200.73821844,0.0005041,120]
[320875911,1711657860340,-546.72178156,0.0005041,120]
[320875912,1711657860350,-500.0,0.0005041,120]
[320875913,1711657860360,-500.0,0.0005041,120]
[320875914,1711657860369,-888.46,0.0005041,120]
[320875915,1711657860379,-774.33,0.0005041,120]
[320875916,1711657860388,-1376.46,0.0005041,120]
[320875917,1711657860397,-1710.74,0.0005041,120]
[320875918,1711657860407,-657.85,0.0005041,120]
[320875919,1711657860416,-1045.24,0.0005041,120]
[320875920,1711657860425,-1169.6,0.0005041,120]
[320875921,1711657860434,-509.54,0.0005041,120]
[320875922,1711657860443,-1448.91,0.0005041,120]
[320875923,1711657860452,-1439.96,0.0005041,120]
[320875924,1711657860461,-1004.32,0.0005041,120]
[320875925,1711657860471,-764.61495002,0.0005041,120]
[320875926,1711657860489,-533.39504998,0.0005041,120]
[320875927,1711657860498,-320.60495002,0.0005041,120]
[320875928,1711657860517,-803.63655183,0.0005041,120]
[320875929,1711657860528,-121.53849815,0.0005041,120]
[320875930,1711657860538,-589.63,0.0005041,120]
[320875931,1711657860547,-500.0,0.0005041,120]
[320875932,1711657860556,-500.0,0.0005041,120]
[320875933,1711657860566,-930.47,0.0005041,120]
[320875934,1711657860577,-2020.01953079,0.0005041,120]
[320875935,1711657862199,-221.62314203,0.00030575,4]
[320875936,1711657862208,-161.81903194,0.00040666,10]
[320875937,1711657862218,-588.60198506,0.00040766,4]
[320875938,1711657862227,-155.87618249,0.00049314,4]
[320875939,1711657862238,-2250.16259704,0.00049314,2]
[320875940,1711657862251,-645.90963473,0.00049314,2]
[320875941,1711657862260,-283.51720375,0.00049315,120]
[320875942,1711657865317,708.99708944,0.0003,30]
[320875943,1711657943438,155.0,0.000285,30]
[320875944,1711657959451,155.0,0.000285,30]
[320875945,1711657979459,155.0,0.000285,30]
[320875946,1711657997447,155.0,0.00027075,30]
[320875947,1711658017453,155.0,0.00027075,30]
[320875948,1711658033475,155.0,0.00027075,30]
[320875949,1711658049445,155.0,0.00025721,30]
[320875950,1711658065456,155.0,0.00025721,30]
[320875951,1711658083521,155.0,0.00024435,2]
[320875952,1711658101466,155.0,0.00024435,2]
[320875953,1711658121482,155.0,0.00024435,2]
[320875954,1711658145661,155.0,0.00023213,2]
[320875955,1711658165462,155.0,0.00023213,2]
[320875956,1711658185543,155.0,0.00023213,2]
[320875957,1711658207471,155.0,0.00022052,2]
[320875958,1711658233458,155.0,0.00022052,2]
[320875967,1711659031677,-1886.06704094,0.00028069,2]
[320875968,1711659031687,-43.43449906,0.0002807,2]
[320875969,1711659031790,-398.14389799,0.0002807,2]
[320875970,1711659031799,-484.64951386,0.00028071,2]
[320875971,1711659031809,-5946.61783557,0.00028072,2]
[320875972,1711659031818,-2342.67982822,0.00028073,2]
[320875973,1711659031828,-165.26678841,0.00028082,2]
[320875974,1711659031837,-150.0,0.00028178,2]
[320875975,1711659031846,-150.0,0.00028178,2]
[320875976,1711659031855,-5211.29209679,0.00028197,2]
[320875977,1711659031864,-2085.81107632,0.000282,2]
[320875978,1711659031874,-4533.5,0.00028373,2]
[320875979,1711659031883,-577.88184554,0.0003,4]
[320875980,1711659031892,-165.26678839,0.00038649,2]
[320875981,1711659031901,-414.77,0.00038759,2]
[320875982,1711659031910,-164.32,0.0004019,15]
[320875983,1711659031919,-473.67,0.00040666,2]
[320875984,1711659031929,-590.6399338,0.00040765,5]
[320875985,1711659031938,-183.84813416,0.00040765,4]
[320875986,1711659031948,-362.97600533,0.00040765,4]
[320875987,1711659031957,-6193.44,0.00040765,10]
[320875988,1711659031966,-150.99,0.00040765,2]
[320875989,1711659031975,-7562.32,0.00040765,2]
[320875990,1711659031984,-578.64363056,0.00040765,120]
[320875991,1711659031993,-310.0,0.00040766,120]
[320875992,1711659032002,-727.09419955,0.00040766,4]
[320875993,1711659032011,-204.67837953,0.00040766,15]
[320875994,1711659032022,-1074.23724674,0.00040813,2]
[320875995,1711659032033,-14962.63015818,0.00040814,3]
[320875996,1711659032043,-414.77,0.00041023,2]
[320875997,1711659032052,-414.77,0.00043287,2]
[320875998,1711659032062,-150.0,0.00043917,7]
[320875999,1711659032071,-150.0,0.00043945,120]
[320876000,1711659032080,-150.0,0.00044131,2]
[320876002,1711659032089,-167.0,0.00044422,2]
[320876004,1711659032099,-1792.46,0.00044441,2]
[320876006,1711659032109,-785.75,0.00044518,2]
[320876008,1711659032120,-180.0,0.00044537,120]
[320876010,1711659032129,-250.0,0.00044587,2]
[320876011,1711659032139,-439.57945655,0.00044628,30]
[320876013,1711659032148,-1103.55,0.0004465,120]
[320876016,1711659032158,-1235.12264339,0.00044685,4]
[320876017,1711659032167,-23689.60865701,0.00044686,2]
[320876020,1711659032180,-210.39134299,0.00044686,2]
[320876022,1711659032189,-250.0,0.00044686,120]
[320876024,1711659032198,-2099.46,0.00044798,2]
[320876026,1711659032208,-250.0,0.00044807,112]
[320876028,1711659032217,-159.63,0.00044922,2]
[320876030,1711659032226,-739.52,0.00045004,120]
[320876032,1711659032235,-159.65,0.00045167,120]
[320876034,1711659032244,-157.98,0.00045236,2]
[320876036,1711659032253,-157.98,0.00045264,2]
[320876038,1711659032261,-157.98,0.00045292,2]
[320876039,1711659032270,-157.98,0.00045321,2]
[320876040,1711659032280,-157.98,0.00045349,2]
[320876041,1711659032290,-712.61418707,0.00045367,4]
[320876042,1711659032298,-157.98,0.00045377,2]
[320876043,1711659032308,-157.98,0.00045405,2]
[320876044,1711659032317,-157.98,0.00045434,2]
[320876045,1711659032326,-157.98,0.00045462,2]
[320876046,1711659032336,-414.77,0.00045551,2]
[320876047,1711659032345,-186.84,0.00045684,2]
[320876048,1711659032354,-165.7,0.00045777,2]
[320876049,1711659032363,-1000.0,0.00045843,2]
[320876050,1711659032372,-151.0,0.00046097,2]
[320876051,1711659032382,-152.0,0.00046471,3]
[320876053,1711659032392,-449.91962443,0.00046612,4]
[320876054,1711659032401,-302.0,0.00046872,4]
[320876055,1711659032411,-164.32,0.00047039,15]
[320876056,1711659032420,-150.0,0.000472,9]
[320876057,1711659032429,-2099.46,0.00047538,2]
[320876058,1711659032439,-604.0,0.00047659,7]
[320876059,1711659032448,-150.0,0.000477,9]
[320876060,1711659032457,-414.77,0.00047815,2]
[320876061,1711659032466,-150.55245195,0.00047831,30]
[320876062,1711659032476,-163.20704914,0.00047869,30]
[320876063,1711659032484,-2340.69346805,0.00047888,4]
[320876064,1711659032494,-322.33333333,0.00048,120]
[320876065,1711659032503,-150.0,0.00048182,2]
[320876066,1711659032513,-150.0,0.00048182,2]
[320876067,1711659032522,-150.0,0.00048182,2]
[320876068,1711659032533,-150.0,0.00048182,2]
[320876069,1711659032542,-150.0,0.00048182,2]
[320876070,1711659032551,-150.0,0.00048182,2]
[320876071,1711659032561,-150.0,0.000482,9]
[320876072,1711659032570,-156.78572009,0.00048426,30]
[320876073,1711659032579,-166.99392,0.0004846,4]
[320876074,1711659032589,-157.08260523,0.00048522,30]
[320876075,1711659032598,-277.636697,0.00048572,30]
[320876076,1711659032607,-2117.86935,0.00048572,30]
[320876077,1711659032616,-226.796476,0.00048572,30]
[320876078,1711659032625,-322.33333333,0.00048603,120]
[320876079,1711659032634,-150.0,0.000487,9]
[320876080,1711659032643,-153.95453613,0.00048848,30]
[320876081,1711659032652,-1208.0,0.00048866,30]
[320876082,1711659032661,-695.46807531,0.00049,30]
[320876083,1711659032670,-1000.0,0.00049,120]
[320876084,1711659032680,-970.17775848,0.00049,2]
[320876085,1711659032689,-150.0,0.00049004,2]
[320876086,1711659032700,-150.0,0.00049004,2]
[320876087,1711659032710,-150.0,0.00049004,2]
[320876088,1711659032720,-163.32424619,0.00049015,2]